fUST/lending_fUST_20250812
["ID","MTS","AMOUNT","RATE_DAILY","PERIOD"]
[378699665,1754962153639,1246.30365809,0.00013699,2]
[378699671,1754962205707,186.62568749,0.0001875,2]
[378699760,1754962233032,-631.60759879,0.00018755,2]
[378699762,1754962233042,-495.70918352,0.00018767,2]
[378699765,1754962233055,-704.29081648,0.00018767,2]
[378699767,1754962233066,-300.0,0.00018767,2]
[378699768,1754962233075,-1134.31928381,0.00018767,2]
[378699827,1754962238469,-65.68071619,0.00018767,2]
[378699828,1754962238480,-300.0,0.00018767,2]
[378699830,1754962238489,-4487.75824004,0.00018768,2]
[378699831,1754962238499,-1445.23734966,0.00018768,2]
[378699832,1754962238508,-2204.06555554,0.00018853,2]
[378699833,1754962238518,-50000.0,0.00018854,2]
[378699834,1754962238527,-460.0,0.00018854,2]
[378699835,1754962238537,-460.0,0.00018854,2]
[378699836,1754962238546,-460.0,0.00018854,2]
[378699837,1754962238555,-460.0,0.00018854,2]
[378699838,1754962238564,-587.73,0.00018854,2]
[378699839,1754962238573,-1824.81,0.00018854,2]
[378699840,1754962238582,-460.0,0.00018854,2]
[378699841,1754962238592,-515.98,0.00018854,3]
[378699842,1754962238601,-257.99,0.00018854,3]
[378699843,1754962238611,-460.0,0.00018854,2]
[378699844,1754962238620,-469.10099899,0.00018854,2]
[378699845,1754962238629,-460.0,0.00018854,2]
[378699846,1754962238638,-463.20053082,0.00018854,2]
[378699847,1754962238648,-460.0,0.00018854,2]
[378699848,1754962238657,-463.20340084,0.00018854,2]
[378699849,1754962238666,-362.66520684,0.00018854,2]
[378699850,1754962238676,-460.0,0.00018854,2]
[378699851,1754962238686,-460.27,0.00018854,2]
[378699852,1754962238695,-460.0,0.00018854,2]
[378699853,1754962238704,-460.0,0.00018854,2]
[378699854,1754962238713,-500.0,0.00018854,2]
[378699855,1754962238722,-267.7155654,0.00018854,2]
[378699856,1754962238731,-500.0,0.00018854,2]
[378699857,1754962238740,-500.0,0.00018854,2]
[378699858,1754962238749,-500.0,0.00018854,2]
[378699859,1754962238758,-500.0,0.00018854,2]
[378699860,1754962238767,-500.0,0.00018854,2]
[378699861,1754962238781,-500.0,0.00018854,2]
[378699862,1754962238790,-500.0,0.00018854,2]
[378699863,1754962238799,-500.0,0.00018854,2]
[378699864,1754962238809,-500.0,0.00018854,2]
[378699865,1754962238819,-500.0,0.00018854,2]
[378699866,1754962238828,-500.0,0.00018854,2]
[378699867,1754962238837,-500.0,0.00018854,2]
[378699868,1754962238847,-500.0,0.00018854,2]
[378699869,1754962238856,-500.0,0.00018854,2]
[378699870,1754962238865,-467.72355043,0.00018854,2]
[378699871,1754962238875,-1035.29,0.00018855,2]
[378699872,1754962238885,-460.0,0.00018855,2]
[378699873,1754962238895,-3209.34,0.00018855,2]
[378699874,1754962238904,-460.0,0.00018855,2]
[378699875,1754962238914,-770.83,0.00018855,2]
[378699876,1754962238923,-460.0,0.00018855,2]
[378699877,1754962238932,-2902.92,0.00018855,2]
[378699878,1754962238942,-1093.4,0.00018855,2]
[378699879,1754962238951,-460.0,0.00018855,2]
[378699880,1754962238961,-460.0,0.00018855,2]
[378699881,1754962238971,-851.69,0.00018855,2]
[378699882,1754962238981,-2235.83,0.00018855,2]
[378699883,1754962238991,-1062.92,0.00018855,2]
[378699884,1754962239001,-460.0,0.00018855,2]
[378699885,1754962239012,-460.0,0.00018855,2]
[378699886,1754962239024,-460.0,0.00018855,2]
[378699887,1754962239034,-460.0,0.00018855,2]
[378699888,1754962239043,-460.0,0.00018855,2]
[378699889,1754962239053,-1439.7,0.00018855,2]
[378699890,1754962239063,-1463.35,0.00018855,2]
[378699891,1754962239074,-1680.11,0.00018855,2]
[378699892,1754962239084,-773.99,0.00018855,3]
[378699893,1754962239095,-460.0,0.00018855,2]
[378699894,1754962239105,-964.98,0.00018855,2]
[378699895,1754962239115,-914.92,0.00018855,2]
[378699896,1754962239124,-460.0,0.00018855,2]
[378699897,1754962239134,-151.0,0.00018856,2]
[378699898,1754962239144,-151.0,0.00018856,2]
[378699899,1754962239153,-151.0,0.00018856,2]
[378699900,1754962239163,-271.20238871,0.00018856,2]
[378699901,1754962239172,-151.0,0.00018856,2]
[378699902,1754962239182,-151.0,0.00018856,2]
[378699903,1754962239192,-151.0,0.00018856,2]
[378699904,1754962239201,-151.0,0.00018856,2]
[378699905,1754962239210,-151.0,0.00018856,2]
[378699906,1754962239222,-151.0,0.00018856,2]
[378699907,1754962239231,-151.0,0.00018856,2]
[378699908,1754962239241,-151.0,0.00018856,2]
[378699909,1754962239250,-151.0,0.00018856,2]
[378699910,1754962239259,-151.33460079,0.00018856,2]
[378699911,1754962239269,-500.0,0.00018856,2]
[378699912,1754962239278,-151.0,0.00018856,2]
[378699913,1754962239288,-500.0,0.00018856,2]
[378699914,1754962239297,-151.0,0.00018856,2]
[378699915,1754962239314,-500.0,0.00018856,2]
[378699916,1754962239323,-151.0,0.00018856,2]
[378699917,1754962239333,-527.553405,0.00018856,2]
[378699918,1754962239342,-151.0,0.00018856,2]
[378699919,1754962239351,-151.0,0.00018856,2]
[378699920,1754962239360,-4520.84,0.00018856,2]
[378699921,1754962239369,-460.0,0.00018856,2]
[378699922,1754962239379,-460.0,0.00018856,2]
[378699923,1754962239609,-702.6,0.00018856,2]
[378699924,1754962239621,-3175.98,0.00018856,2]
[378699925,1754962239632,-799.01,0.00018856,2]
[378699926,1754962239642,-2481.6,0.00018856,2]
[378699927,1754962239651,-460.0,0.00018856,2]
[378699928,1754962239661,-500.35,0.00018864,2]
[378699929,1754962239671,-460.0,0.00018864,2]
[378699930,1754962239680,-460.0,0.00018864,2]
[378699931,1754962239699,-460.0,0.00018864,2]
[378699932,1754962239710,-460.0,0.00018864,2]
[378699933,1754962239719,-460.0,0.00018864,2]
[378699934,1754962239729,-460.0,0.00018864,2]
[378699935,1754962239738,-858.25,0.00018864,2]
[378699936,1754962239748,-460.0,0.00018864,2]
[378699937,1754962239758,-604.76,0.00018864,2]
[378699938,1754962239767,-460.0,0.00018864,2]
[378699939,1754962239777,-460.0,0.00018864,2]
[378699940,1754962239787,-460.0,0.00018864,2]
[378699941,1754962239796,-460.0,0.00018864,2]
[378699942,1754962239806,-460.0,0.00018864,2]
[378699943,1754962239815,-460.0,0.00018864,2]
[378699944,1754962239825,-460.0,0.00018864,2]
[378699945,1754962239834,-460.0,0.00018864,2]
[378699946,1754962239844,-460.0,0.00018864,2]
[378699947,1754962239854,-460.0,0.00018864,2]
[378699948,1754962239864,-460.0,0.00018864,2]
[378699949,1754962239875,-460.0,0.00018864,2]
[378699950,1754962239886,-460.0,0.00018864,2]
[378699951,1754962239896,-856.51,0.00018864,2]
[378699952,1754962239905,-708.03,0.00018864,2]
[378699953,1754962239915,-460.0,0.00018864,2]
[378699954,1754962239924,-460.0,0.00018864,2]
[378699955,1754962239933,-460.0,0.00018864,2]
[378699956,1754962239943,-712.24,0.00018864,2]
[378699957,1754962239952,-460.0,0.00018864,2]
[378699958,1754962239961,-581.58,0.00018864,2]
[378699959,1754962239971,-460.0,0.00018864,2]
[378699960,1754962239980,-460.0,0.00018864,2]
[378699961,1754962239989,-509.64,0.00018864,2]
[378699962,1754962239999,-868.29,0.00018864,2]
[378699964,1754962240008,-460.0,0.00018864,2]
[378699966,1754962240018,-460.0,0.00018864,2]
[378699968,1754962240031,-460.0,0.00018864,2]
[378699970,1754962240040,-460.0,0.00018864,2]
[378699972,1754962240049,-460.0,0.00018864,2]
[378699973,1754962240059,-460.0,0.00018864,2]
[378699975,1754962240082,-460.0,0.00018864,2]
[378699976,1754962240093,-460.0,0.00018864,2]
[378699977,1754962240104,-460.0,0.00018864,2]
[378699979,1754962240115,-460.0,0.00018864,2]
[378699981,1754962240126,-805.44,0.00018864,2]
[378699983,1754962240136,-460.0,0.00018864,2]
[378699984,1754962240147,-460.0,0.00018864,2]
[378699986,1754962240158,-460.0,0.00018864,2]
[378699988,1754962240169,-460.0,0.00018864,2]
[378699989,1754962240180,-460.0,0.00018864,2]
[378699990,1754962240191,-845.95,0.00018864,2]
[378699991,1754962240201,-460.0,0.00018864,2]
[378699993,1754962240211,-478.06,0.00018864,2]
[378699994,1754962240221,-460.0,0.00018864,2]
[378699995,1754962240230,-260.07782866,0.00018864,2]
[378699996,1754962240240,-460.0,0.00018864,2]
[378699997,1754962240250,-460.0,0.00018864,2]
[378699998,1754962240261,-460.0,0.00018864,2]
[378699999,1754962240271,-460.0,0.00018864,2]
[378700000,1754962240281,-1430.57,0.00018864,2]
[378700001,1754962240291,-567.96,0.00018864,2]
[378700002,1754962240301,-460.0,0.00018864,2]
[378700003,1754962240311,-460.0,0.00018864,2]
[378700004,1754962240321,-1206.12,0.00018864,2]
[378700005,1754962240331,-460.0,0.00018864,2]
[378700006,1754962240340,-776.52,0.00018864,2]
[378700007,1754962240350,-460.0,0.00018864,2]
[378700008,1754962240359,-460.0,0.00018864,2]
[378700009,1754962240369,-460.0,0.00018864,2]
[378700010,1754962240379,-460.0,0.00018864,2]
[378700011,1754962240388,-1076.17,0.00018864,2]
[378700012,1754962240398,-557.8,0.00018864,2]
[378700013,1754962240407,-460.0,0.00018864,2]
[378700014,1754962240417,-460.0,0.00018864,2]
[378700015,1754962240427,-460.0,0.00018864,2]
[378700016,1754962240436,-460.0,0.00018864,2]
[378700017,1754962240446,-1707.44,0.00018864,2]
[378700018,1754962240455,-460.0,0.00018864,2]
[378700019,1754962240465,-839.96,0.00018864,2]
[378700020,1754962240474,-734.52,0.00018864,2]
[378700022,1754962240483,-1008.54,0.00018864,2]
[378700024,1754962240493,-460.0,0.00018864,2]
[378700026,1754962240503,-460.0,0.00018864,2]
[378700027,1754962240514,-460.0,0.00018864,2]
[378700028,1754962240523,-562.29578521,0.00018864,2]
[378700029,1754962240533,-460.0,0.00018864,2]
[378700030,1754962240542,-460.0,0.00018864,2]
[378700031,1754962240552,-460.02790009,0.00018864,2]
[378700032,1754962240562,-483.05478056,0.00018864,2]
[378700033,1754962240571,-1147.11,0.00018864,2]
[378700034,1754962240581,-224.77094593,0.00018864,2]
[378700035,1754962240596,-460.0,0.00018864,2]
[378700036,1754962240613,-2994.58,0.00018864,2]
[378700037,1754962240630,-882.96,0.00018864,2]
[378700038,1754962240639,-460.0,0.00018864,2]
[378700039,1754962240649,-721.16,0.00018864,2]
[378700040,1754962240659,-460.0,0.00018864,2]
[378700041,1754962240669,-460.0,0.00018864,2]
[378700042,1754962240678,-460.0,0.00018864,2]
[378700043,1754962240688,-567.11,0.00018864,2]
[378700044,1754962240697,-460.0,0.00018864,2]
[378700045,1754962240707,-835.18,0.00018864,2]
[378700046,1754962240717,-460.0,0.00018864,2]
[378700047,1754962240726,-460.0,0.00018864,2]
[378700048,1754962240735,-2851.0,0.00018864,2]
[378700049,1754962240745,-460.0,0.00018864,2]
[378700050,1754962240755,-1316.11,0.00018864,2]
[378700051,1754962240773,-484.97,0.00018864,2]
[378700052,1754962240782,-460.0,0.00018864,2]
[378700053,1754962240792,-582.18856313,0.00018864,2]
[378700054,1754962240801,-460.0,0.00018864,2]
[378700055,1754962240811,-463.24,0.00018864,2]
[378700056,1754962240820,-1215.78,0.00018864,2]
[378700057,1754962240830,-460.0,0.00018864,2]
[378700058,1754962240839,-1277.9,0.00018864,2]
[378700059,1754962240848,-460.0,0.00018864,2]
[378700060,1754962240858,-1023.09,0.00018864,2]
[378700061,1754962240867,-847.37,0.00018864,2]
[378700062,1754962240877,-671.16,0.00018864,2]
[378700063,1754962240887,-460.0,0.00018864,2]
[378700064,1754962240897,-460.0,0.00018864,2]
[378700065,1754962240906,-460.0,0.00018864,2]
[378700066,1754962240916,-390.63891836,0.00018865,2]
[378700067,1754962240925,-460.0,0.00018865,2]
[378700068,1754962240935,-460.0,0.00018865,2]
[378700069,1754962240954,-460.0,0.00018865,2]
[378700070,1754962240964,-460.0,0.00018865,2]
[378700071,1754962240974,-493.47,0.00018865,2]
[378700072,1754962240983,-460.0,0.00018865,2]
[378700073,1754962240993,-460.0,0.00018865,2]
[378700074,1754962241002,-460.0,0.00018865,2]
[378700075,1754962241012,-460.0,0.00018865,2]
[378700076,1754962241025,-460.0,0.00018865,2]
[378700077,1754962241034,-460.0,0.00018865,2]
[378700078,1754962241044,-460.0,0.00018865,2]
[378700079,1754962241053,-460.0,0.00018865,2]
[378700080,1754962241063,-460.0,0.00018865,2]
[378700081,1754962241073,-250.43698692,0.00018865,2]
[378700082,1754962241083,-460.0,0.00018865,2]
[378700083,1754962241092,-460.0,0.00018865,2]
[378700084,1754962241104,-460.0,0.00018865,2]
[378700085,1754962241113,-460.0,0.00018865,2]
[378700086,1754962241122,-460.0,0.00018865,2]
[378700087,1754962241131,-533.75,0.00018865,2]
[378700088,1754962241141,-896.89,0.00018865,2]
[378700089,1754962241150,-460.0,0.00018865,2]
[378700090,1754962241160,-460.0,0.00018865,2]
[378700091,1754962241169,-460.0,0.00018865,2]
[378700092,1754962241178,-460.0,0.00018865,2]
[378700093,1754962241188,-479.85849401,0.00018865,2]
[378700094,1754962241197,-460.0,0.00018865,2]
[378700095,1754962241207,-464.64,0.00018865,2]
[378700096,1754962241216,-460.0,0.00018865,2]
[378700097,1754962241226,-460.0,0.00018865,2]
[378700098,1754962241235,-460.0,0.00018865,2]
[378700099,1754962241245,-584.52,0.00018865,2]
[378700100,1754962241254,-460.0,0.00018865,2]
[378700101,1754962241265,-460.0,0.00018865,2]
[378700102,1754962241274,-460.0,0.00018865,2]
[378700103,1754962241283,-460.0,0.00018865,2]
[378700104,1754962241293,-482.66,0.00018865,2]
[378700105,1754962241302,-460.0,0.00018865,2]
[378700106,1754962241312,-460.0,0.00018865,2]
[378700107,1754962241322,-416.68215033,0.00018865,2]
[378700108,1754962241332,-460.0,0.00018865,2]
[378700109,1754962241341,-460.0,0.00018865,2]
[378700110,1754962241350,-460.0,0.00018865,2]
[378700111,1754962241360,-460.0,0.00018865,2]
[378700112,1754962241369,-525.01640546,0.00018865,2]
[378700113,1754962241378,-460.0,0.00018865,2]
[378700114,1754962241388,-460.0,0.00018865,2]
[378700115,1754962241398,-460.0,0.00018865,2]
[378700116,1754962241407,-460.0,0.00018865,2]
[378700117,1754962241416,-460.0,0.00018865,2]
[378700118,1754962241426,-460.0,0.00018865,2]
[378700119,1754962241435,-460.0,0.00018865,2]
[378700120,1754962241444,-460.0,0.00018865,2]
[378700121,1754962241454,-460.0,0.00018865,2]
[378700122,1754962241463,-183.63284527,0.00018865,2]
[378700123,1754962241472,-460.0,0.00018865,2]
[378700124,1754962241481,-460.0,0.00018865,2]
[378700125,1754962241491,-460.0,0.00018865,2]
[378700126,1754962241501,-460.0,0.00018865,2]
[378700127,1754962241510,-460.0,0.00018865,2]
[378700128,1754962241519,-462.53909631,0.00018865,2]
[378700129,1754962241529,-460.0,0.00018865,2]
[378700130,1754962241538,-193.83000737,0.00018865,2]
[378700131,1754962241547,-460.0,0.00018865,2]
[378700132,1754962241556,-460.0,0.00018865,2]
[378700133,1754962241566,-460.0,0.00018865,2]
[378700134,1754962241576,-460.0,0.00018865,2]
[378700135,1754962241585,-460.0,0.00018865,2]
[378700136,1754962241595,-726.61,0.00018865,2]
[378700137,1754962241604,-547.32,0.00018865,2]
[378700138,1754962241613,-460.0,0.00018865,2]
[378700139,1754962241622,-460.0,0.00018865,2]
[378700140,1754962241632,-688.1,0.00018865,2]
[378700141,1754962241641,-460.0,0.00018865,2]
[378700142,1754962241650,-460.0,0.00018865,2]
[378700143,1754962241660,-460.0,0.00018865,2]
[378700144,1754962241669,-460.0,0.00018865,2]
[378700145,1754962241679,-460.0,0.00018865,2]
[378700146,1754962241689,-460.0,0.00018865,2]
[378700147,1754962241698,-460.0,0.00018865,2]
[378700148,1754962241708,-460.0,0.00018865,2]
[378700149,1754962241717,-2403.86,0.00018865,2]
[378700150,1754962241726,-2403.86,0.00018865,2]
[378700151,1754962241736,-2403.86,0.00018865,2]
[378700152,1754962241745,-2403.86,0.00018866,2]
[378700153,1754962241755,-2403.86,0.00018866,2]
[378700154,1754962241765,-2403.86,0.00018866,2]
[378700155,1754962241774,-2403.86,0.00018866,2]
[378700156,1754962241783,-2403.86,0.00018866,2]
[378700157,1754962241793,-2403.86,0.00018866,2]
[378700158,1754962241802,-2403.86,0.00018866,2]
[378700159,1754962241811,-2403.86,0.00018866,2]
[378700160,1754962241821,-2403.86,0.00018866,2]
[378700161,1754962241830,-2403.86,0.00018866,2]
[378700162,1754962241839,-2403.86,0.00018866,2]
[378700163,1754962241849,-2403.86,0.00018866,2]
[378700164,1754962241858,-2403.86,0.00018866,2]
[378700165,1754962241868,-2403.86,0.00018866,2]
[378700166,1754962241877,-2403.86,0.00018866,2]
[378700167,1754962241887,-2403.86,0.00018866,2]
[378700168,1754962241896,-370000.0,0.00018867,2]
[378700169,1754962241906,-10000.0,0.00018868,2]
[378700170,1754962241915,-500.0,0.00018873,2]
[378700171,1754962241925,-1445.23734962,0.0001893,2]
[378700172,1754962241938,-355.11154633,0.00018964,2]
[378700173,1754962241948,-488.86,0.00018964,2]
[378700174,1754962241957,-460.0,0.00018964,2]
[378700175,1754962241966,-460.0,0.00018964,2]
[378700176,1754962241975,-509.98293276,0.00018964,2]
[378700177,1754962241985,-460.0,0.00018964,2]
[378700178,1754962241994,-460.0,0.00018964,2]
[378700179,1754962242003,-708.67,0.00018964,2]
[378700180,1754962242013,-460.0,0.00018964,2]
[378700181,1754962242025,-460.0,0.00018964,2]
[378700182,1754962242034,-460.0,0.00018964,2]
[378700183,1754962242044,-460.0,0.00018964,2]
[378700184,1754962242053,-460.0,0.00018964,2]
[378700185,1754962242063,-543.49,0.00018964,2]
[378700186,1754962242072,-460.0,0.00018964,2]
[378700187,1754962242082,-460.0,0.00018964,2]
[378700188,1754962242146,-516.02,0.00018964,2]
[378700189,1754962242155,-460.0,0.00018964,2]
[378700190,1754962242165,-460.0,0.00018964,2]
[378700191,1754962242174,-460.0,0.00018964,2]
[378700192,1754962242183,-1395.57,0.00018964,2]
[378700193,1754962242192,-460.0,0.00018964,2]
[378700194,1754962242201,-460.0,0.00018964,2]
[378700195,1754962242210,-460.0,0.00018964,2]
[378700196,1754962242220,-277.04727961,0.00018964,2]
[378700197,1754962242229,-460.0,0.00018964,2]
[378700198,1754962242238,-460.0,0.00018964,2]
[378700199,1754962242248,-9662.9,0.00018965,2]
[378700200,1754962242257,-2762.77,0.00018965,2]
[378700201,1754962242266,-3403.61,0.00018965,2]
[378700202,1754962242275,-460.0,0.00018965,2]
[378700203,1754962242285,-460.0,0.00018965,2]
[378700204,1754962242295,-1868.12,0.00018965,2]
[378700205,1754962242304,-1641.09,0.00018965,2]
[378700206,1754962242314,-1125.18,0.00018967,2]
[378700207,1754962242323,-430.87988343,0.00018967,2]
[378700208,1754962242332,-460.0,0.00018967,2]
[378700209,1754962242341,-2861.17,0.00018967,2]
[378700210,1754962242350,-460.0,0.00018967,2]
[378700211,1754962242359,-3033.04,0.00018967,2]
[378700212,1754962242368,-460.0,0.00018967,2]
[378700213,1754962242377,-460.0,0.00018968,2]
[378700214,1754962242386,-500.0,0.00018973,2]
[378700215,1754962242395,-256.55294227,0.00018973,2]
[378700216,1754962242405,-500.0,0.00018973,2]
[378700217,1754962242414,-150.0,0.00019057,2]
[378700218,1754962242423,-1445.23734962,0.00019092,2]
[378700219,1754962242433,-76271.99954866,0.00019115,2]
[378700220,1754962242442,-460.0,0.00019128,2]
[378700221,1754962242451,-460.0,0.00019128,2]
[378700222,1754962242460,-587.73,0.00019128,2]
[378700223,1754962242470,-1824.81,0.00019128,2]
[378700224,1754962242480,-460.0,0.00019128,2]
[378700225,1754962242490,-460.0,0.00019128,2]
[378700226,1754962242500,-462.80513138,0.00019128,2]
[378700227,1754962242510,-460.0,0.00019128,2]
[378700228,1754962242519,-460.27,0.00019128,2]
[378700229,1754962242528,-460.0,0.00019128,2]
[378700230,1754962242538,-460.0,0.00019128,2]
[378700231,1754962242547,-1035.29,0.00019129,2]
[378700232,1754962242556,-3209.34,0.00019129,2]
[378700233,1754962242566,-460.0,0.00019129,2]
[378700234,1754962242575,-770.83,0.00019129,2]
[378700235,1754962242585,-460.0,0.00019129,2]
[378700236,1754962242594,-2902.92,0.00019129,2]
[378700237,1754962242604,-1093.4,0.00019129,2]
[378700238,1754962242613,-460.0,0.00019129,2]
[378700239,1754962242622,-851.69,0.00019129,2]
[378700240,1754962242632,-2235.83,0.00019129,2]
[378700241,1754962242642,-1062.92,0.00019129,2]
[378700242,1754962242651,-460.0,0.00019129,2]
[378700243,1754962242660,-460.0,0.00019129,2]
[378700244,1754962242669,-460.0,0.00019129,2]
[378700245,1754962242679,-460.0,0.00019129,2]
[378700246,1754962242688,-1439.7,0.00019129,2]
[378700247,1754962242697,-1463.35,0.00019129,2]
[378700248,1754962242706,-1680.11,0.00019129,2]
[378700249,1754962242715,-460.0,0.00019129,2]
[378700250,1754962242724,-964.98,0.00019129,2]
[378700251,1754962242734,-914.92,0.00019129,2]
[378700252,1754962242743,-460.0,0.00019129,2]
[378700253,1754962242752,-4520.84,0.0001913,2]
[378700254,1754962242762,-460.0,0.0001913,2]
[378700255,1754962242771,-460.0,0.0001913,2]
[378700256,1754962242779,-702.6,0.0001913,2]
[378700257,1754962242789,-3175.98,0.0001913,2]
[378700258,1754962242798,-799.01,0.0001913,2]
[378700259,1754962242807,-2481.6,0.0001913,2]
[378700260,1754962242817,-460.0,0.0001913,2]
[378700261,1754962242826,-500.35,0.00019138,2]
[378700262,1754962242835,-460.0,0.00019138,2]
[378700263,1754962242844,-460.0,0.00019138,2]
[378700264,1754962242853,-460.0,0.00019138,2]
[378700265,1754962242863,-858.25,0.00019138,2]
[378700266,1754962242872,-604.76,0.00019138,2]
[378700267,1754962242881,-460.0,0.00019138,2]
[378700268,1754962242891,-460.0,0.00019138,2]
[378700269,1754962242900,-460.0,0.00019138,2]
[378700270,1754962242909,-460.0,0.00019138,2]
[378700271,1754962242918,-460.0,0.00019138,2]
[378700272,1754962242928,-460.0,0.00019138,2]
[378700273,1754962242937,-856.51,0.00019138,2]
[378700274,1754962242946,-708.03,0.00019138,2]
[378700276,1754962242955,-712.24,0.00019138,2]
[378700277,1754962242964,-460.0,0.00019138,2]
[378700278,1754962242974,-581.58,0.00019138,2]
[378700279,1754962242983,-460.0,0.00019138,2]
[378700280,1754962242992,-460.0,0.00019138,2]
[378700281,1754962243001,-509.64,0.00019138,2]
[378700282,1754962243011,-868.29,0.00019138,2]
[378700283,1754962243020,-460.0,0.00019138,2]
[378700284,1754962243031,-460.0,0.00019138,2]
[378700286,1754962243040,-460.0,0.00019138,2]
[378700287,1754962243049,-460.0,0.00019138,2]
[378700288,1754962243058,-805.44,0.00019138,2]
[378700289,1754962243068,-460.0,0.00019138,2]
[378700290,1754962243077,-460.0,0.00019138,2]
[378700291,1754962243086,-460.0,0.00019138,2]
[378700292,1754962243095,-460.0,0.00019138,2]
[378700293,1754962243105,-845.95,0.00019138,2]
[378700294,1754962243114,-478.06,0.00019138,2]
[378700295,1754962243123,-460.0,0.00019138,2]
[378700296,1754962243132,-460.0,0.00019138,2]
[378700297,1754962243141,-281.41,0.00019138,2]
[378700298,1754962243151,-460.0,0.00019138,2]
[378700299,1754962243160,-1430.57,0.00019138,2]
[378700300,1754962243169,-567.96,0.00019138,2]
[378700301,1754962243178,-460.0,0.00019138,2]
[378700302,1754962243188,-460.0,0.00019138,2]
[378700303,1754962243197,-1206.12,0.00019138,2]
[378700304,1754962243206,-460.0,0.00019138,2]
[378700305,1754962243215,-776.52,0.00019138,2]
[378700306,1754962243225,-460.0,0.00019138,2]
[378700308,1754962243234,-460.0,0.00019138,2]
[378700310,1754962243244,-460.0,0.00019138,2]
[378700312,1754962243257,-460.0,0.00019138,2]
[378700314,1754962243268,-1076.17,0.00019138,2]
[378700315,1754962243278,-557.8,0.00019138,2]
[378700316,1754962243287,-460.0,0.00019138,2]
[378700317,1754962243296,-460.0,0.00019138,2]
[378700318,1754962243306,-1707.44,0.00019138,2]
[378700319,1754962243315,-839.96,0.00019138,2]
[378700320,1754962243325,-734.52,0.00019138,2]
[378700321,1754962243334,-1008.54,0.00019138,2]
[378700322,1754962243343,-460.0,0.00019138,2]
[378700323,1754962243352,-460.0,0.00019138,2]
[378700324,1754962243362,-460.0,0.00019138,2]
[378700325,1754962243371,-1147.11,0.00019138,2]
[378700326,1754962243380,-2994.58,0.00019138,2]
[378700327,1754962243389,-882.96,0.00019138,2]
[378700328,1754962243398,-721.16,0.00019138,2]
[378700329,1754962243407,-460.0,0.00019138,2]
[378700330,1754962243417,-567.11,0.00019138,2]
[378700331,1754962243428,-835.18,0.00019138,2]
[378700332,1754962243438,-460.0,0.00019138,2]
[378700333,1754962243447,-2851.0,0.00019138,2]
[378700334,1754962243456,-460.0,0.00019138,2]
[378700335,1754962243466,-1316.11,0.00019138,2]
[378700336,1754962243475,-484.97,0.00019138,2]
[378700337,1754962243485,-460.0,0.00019138,2]
[378700338,1754962243495,-460.0,0.00019138,2]
[378700339,1754962243504,-463.24,0.00019138,2]
[378700340,1754962243514,-1215.78,0.00019138,2]
[378700341,1754962243523,-460.0,0.00019138,2]